[Event "1st Semana Santa Torrevieja 2022"]
[Site "Torrevieja Alicante"]
[Date "2022.04.17"]
[Round "9.7"]
[White "Vasquez Schroeder, Rodrigo"]
[Black "Moral Garcia, Serafin"]
[Result "1/2-1/2"]
[ECO "D76"]
[WhiteElo "2493"]
[BlackElo "2214"]
[Annotator "TA"]
[PlyCount "82"]
[EventDate "2022.04.12"]
[EventType "swiss"]
[EventCountry "ESP"]
[SourceTitle "playchess.com"]
[Source "ChessBase"]
[SourceQuality "1"]
[TimeControl "5400+30"]

{[%evp 17,82,4,18,18,36,37,41,26,41,29,73,73,64,95,97,50,79,54,79,42,56,32,18,14,34,27,19,25,61,58,94,91,81,73,136,114,146,144,125,70,69,70,144,168,223,222,208,82,91,87,94,87,101,79,79,79,79,28,79,80,83,82,82,82,97,97,97]} 1. d4 {[%emt 0:01:18]} Nf6 {[%emt 0:00:08]} 2. c4 {[%emt 0:00:27]} g6 {[%emt 0:00:27]} 3. g3 {[%emt 0:00:11]} Bg7 {[%emt 0:00:14]} 4. Bg2 {[%emt 0:00:07]} d5 {[%emt 0:00:32]} 5. cxd5 {[%emt 0:00:07]} Nxd5 {[%emt 0:00:09]} 6. Nf3 {[%emt 0:00:06]} Nb6 {[%emt 0:00:46]} 7. O-O {[%emt 0:00:32]} O-O {[%emt 0:01:42]} 8. Nc3 {[%emt 0:00:14]} Nc6 {[%emt 0:01:46]} 9. e3 {[%emt 0:00:08]} Re8 {[%emt 0:01:39]} 10. Nh4 {[%emt 0:02:44] D76: Fianchetto Grünfeld: Main Line with 7...Nb6.} a5 {[%emt 0:05:52]} 11. f4 {[%emt 0:01:27] [#]} Nb4 $146 {[%emt 0:03:58][%cal Oc7c5]} ({Predecessor:} 11... a4 12. Qe2 Be6 13. Rd1 Bc4 14. Qf2 e6 15. Nf3 Nd5 16. Nd2 Ba6 17. Nde4 b6 {0-1 (59) Martinez Alcantara,J (2602)-Maghsoodloo,P (2664) Chess.com INT 2019}) 12. Qe2 {[%emt 0:04:29] White is slightly better.} Be6 {[%emt 0:02:58]} 13. Rd1 {[%emt 0:00:55]} f5 {[%emt 0:02:31]} 14. Bxb7 {[%emt 0:02:43]} Rb8 {[%emt 0:00:28]} 15. Bg2 {[%emt 0:00:34]} N4d5 {[%emt 0:01:01]} 16. e4 {[%emt 0:02:36]} (16. Bd2 $16) 16... Nxc3 $14 {[%emt 0:02:16]} 17. bxc3 {[%emt 0:00:12]} Bc4 {[%emt 0:01:52]} 18. Qc2 {[%emt 0:01:38]} (18. Qe1 $5 {[%cal Re4f5]}) 18... e6 {[%emt 0:04:40]} 19. Rb1 {[%emt 0:07:56][%cal Re4f5]} Qd7 {[%emt 0:03:52]} 20. Rb2 {[%emt 0:05:34]} Na4 {[%emt 0:05:26]} 21. Rxb8 {[%emt 0:02:12]} Rxb8 {[%emt 0:00:02]} 22. exf5 {[%emt 0:01:19]} exf5 {[%emt 0:00:55]} 23. Nf3 {[%emt 0:00:52]} Nb6 {[%emt 0:04:14]} 24. Ne5 {[%emt 0:05:09]} Bxe5 {[%emt 0:00:18]} 25. fxe5 {[%emt 0:01:04]} Qe6 {[%emt 0:05:15]} ({Black should try} 25... Qa4 26. Rd2 Qxc2 27. Rxc2 Nd5) 26. Rd2 {[%emt 0:01:12]} Bd5 {[%emt 0:02:51]} 27. Bxd5 $1 {[%emt 0:01:57]} Qxd5 {[%emt 0:00:44] [#]} 28. Re2 {[%emt 0:09:03]} (28. Qb3 $1 $16) 28... Qc4 {[%emt 0:03:57]} 29. Qb3 $1 {[%emt 0:10:26] aiming for Rb2.} Qxb3 {[%emt 0:05:15]} (29... a4 $14 30. Qxc4+ Nxc4) 30. axb3 {[%emt 0:00:07][%mdl 4096] Endgame KRB-KRN} Nd5 {[%emt 0:00:16]} (30... Ra8 {might work better.} 31. Bg5 Kf8) 31. c4 $18 {[%emt 0:00:24]} Nc3 {[%emt 0:00:44] [#]} 32. Rb2 {[%emt 0:01:27]} (32. Re3 $1 $18 {[%cal Re3c3] is the precise move to win.} Ne4 33. g4) 32... a4 {[%emt 0:05:49]} 33. bxa4 {[%emt 0:01:18]} Rxb2 {[%emt 0:00:02]} 34. Bxb2 {[%emt 0:00:08]} Nxa4 $16 {[%emt 0:00:02] KB-KN} 35. Bc1 {[%emt 0:02:06] And now e6 would win.} Nb6 {[%emt 0:01:27]} 36. c5 {[%emt 0:00:25]} Nd5 {[%emt 0:00:34]} 37. Bd2 {[%emt 0:00:12]} ({White should play} 37. Kf1 $16) 37... c6 {[%emt 0:02:32]} (37... Kf7 $11 {remains equal.}) 38. Kf2 {[%emt 0:02:01] White is better.} Kf7 {[%emt 0:01:52]} 39. Ke2 {[%emt 0:00:45]} Ke6 {[%emt 0:01:30]} 40. Kd3 {[%emt 0:00:13]} Nc7 {[%emt 0:01:45]} 41. Kc4 {[%emt 0:00:17]} Nd5 {[%emt 0:00:12] White really could win this.  Weighted Error Value: White=0.14 (very precise) /Black=0.14 (very precise)} 1/2-1/2

[Event "1st Semana Santa Torrevieja 2022"]
[Site "Torrevieja Alicante"]
[Date "2022.04.17"]
[Round "9.8"]
[White "Vrolijk, Liam"]
[Black "Batsiashvili, Nino"]
[Result "1/2-1/2"]
[ECO "D38"]
[WhiteElo "2480"]
[BlackElo "2491"]
[Annotator "TA"]
[PlyCount "34"]
[EventDate "2022.04.12"]
[EventType "swiss"]
[EventCountry "ESP"]
[SourceTitle "playchess.com"]
[Source "ChessBase"]
[SourceQuality "1"]
[TimeControl "5400+30"]

{[%evp 16,34,29,22,18,20,15,0,19,24,22,15,26,0,0,0,12,12,15,10,14]} 1. d4 {[%emt 0:00:05]} Nf6 {[%emt 0:00:03]} 2. c4 {[%emt 0:00:12]} e6 {[%emt 0:00:03]} 3. Nf3 {[%emt 0:00:17]} d5 {[%emt 0:00:06]} 4. Nc3 {[%emt 0:00:17]} Bb4 {[%emt 0:00:04]} 5. Bg5 {[%emt 0:00:14]} h6 {[%emt 0:03:02]} 6. Bxf6 {[%emt 0:02:13]} Qxf6 {[%emt 0:00:04]} 7. e3 {[%emt 0:00:10]} c5 {[%emt 0:03:05]} 8. cxd5 {[%emt 0:04:09]} exd5 {[%emt 0:00:23]} 9. Bb5+ {[%emt 0:04:24]} Bd7 {[%emt 0:11:03] D38: Queen's Gambit Declined: Ragozin Defence (4 Nf3 Bb4).} 10. Bxd7+ {[%emt 0:05:17]} (10. a4 {with more complications.} O-O 11. O-O Be6 12. dxc5 a6 13. Be2) 10... Nxd7 {[%emt 0:00:01]} 11. Qb3 {[%emt 0:04:49] [#]} cxd4 $146 {[%emt 0:09:37][%cal Od7c5] [#] And now ...Nc5! would win.} ({Predecessor:} 11... Bxc3+ 12. bxc3 Qc6 13. Rb1 b6 14. c4 cxd4 15. cxd5 Qc3+ 16. Qxc3 dxc3 17. Rb4 O-O {½-½ (35) Ulko,J (2441)-Natacheev,P (2361) Sochi 2016}) 12. Qxb4 {[%emt 0:02:27]} (12. Nxd4 {feels hotter.} Nc5 13. Qxd5 Qa6 14. Nde2) 12... dxc3 {[%emt 0:00:31]} 13. bxc3 {[%emt 0:00:06]} a5 {[%emt 0:10:29]} 14. Qd4 {[%emt 0:01:08]} O-O {[%emt 0:00:13] The position is equal.} 15. Rb1 {[%emt 0:00:28]} Rac8 {[%emt 0:04:40]} 16. Rxb7 {[%emt 0:04:21]} Rxc3 {[%emt 0:03:13] [#] aiming for ...Rc1+.} 17. O-O {[%emt 0:03:06]} Qxd4 {[%emt 0:00:33] An even fight not without its subleties.  Weighted Error Value: White=0.06 (flawless) /Black=0.07 (flawless)} 1/2-1/2

[Event "1st Semana Santa Torrevieja 2022"]
[Site "Torrevieja Alicante"]
[Date "2022.04.17"]
[Round "9.9"]
[White "Habans Aguerrea, Javier"]
[Black "Rakotomaharo, Fy Antenaina"]
[Result "1/2-1/2"]
[ECO "D00"]
[WhiteElo "2340"]
[BlackElo "2474"]
[Annotator "TA"]
[PlyCount "88"]
[EventDate "2022.04.12"]
[EventType "swiss"]
[EventCountry "ESP"]
[SourceTitle "playchess.com"]
[Source "ChessBase"]
[SourceQuality "1"]
[TimeControl "5400+30"]

{[%evp 9,88,8,7,7,2,7,-5,16,0,0,-8,-35,-35,-25,-27,-37,-29,-30,-22,-20,-18,-53,-58,-60,-64,-54,-46,-50,-65,-56,-66,-61,-58,-159,-164,-202,-211,-240,-266,-253,-156,-156,-156,-238,-245,-225,-235,-325,-282,-285,-280,-270,-268,-561,-323,-335,-368,-368,-355,-322,-344,-330,-319,-379,-383,-365,-358,-289,0,0,0,0,0,0,0,0,0,0,0,0,0]} 1. d4 {[%emt 0:00:06]} Nf6 {[%emt 0:00:06]} 2. Bg5 {[%emt 0:00:06]} d5 {[%emt 0:00:05]} 3. e3 {[%emt 0:00:09]} c5 {[%emt 0:00:05]} 4. c3 {[%emt 0:00:38]} Qb6 {[%emt 0:00:47]} 5. Qb3 {[%emt 0:02:37]} Nc6 {[%emt 0:00:08]} 6. Nd2 {[%emt 0:00:33] D00: 1 d4 d5: Unusual lines.} Bf5 {[%emt 0:00:10]} 7. dxc5 {[%emt 0:07:05]} Qxc5 {[%emt 0:00:27]} (7... Qxb3 8. axb3 Nd7 9. b4 $16) 8. Ngf3 {[%emt 0:00:18]} (8. Qxb7 Rb8 9. Nb3 Rxb7 $15) 8... e5 {[%emt 0:15:32]} 9. Bxf6 {[%emt 0:14:32]} ({Much weaker is} 9. Qxb7 Rb8 10. Qa6 (10. Qc7 $2 Bd6 $19) 10... Rxb2 $17) 9... gxf6 {[%emt 0:00:23] [#]} 10. Qb5 $146 {[%emt 0:12:15]} ({Don't play} 10. Qxb7 Rb8 11. Qa6 Rxb2 $17) ({Predecessor:} 10. Be2 O-O-O 11. a4 h5 12. h4 Kb8 13. Qb5 Qe7 14. a5 a6 15. Qb3 Qc7 16. Bxa6 {0-1 (31) Koc,P (2346)-Van Foreest,J (2682) Chess.com INT 2020}) 10... O-O-O {[%emt 0:05:47]} 11. Qxc5 {[%emt 0:01:57]} Bxc5 {[%emt 0:00:06]} 12. Be2 {[%emt 0:01:41]} Be6 {[%emt 0:04:40]} 13. O-O {[%emt 0:02:49]} Rhg8 {[%emt 0:00:36]} 14. Rfd1 {[%emt 0:00:47]} Be7 {[%emt 0:03:33]} 15. b4 {[%emt 0:04:52]} Kb8 {[%emt 0:03:22]} 16. a3 {[%emt 0:01:56]} Rc8 {[%emt 0:03:34]} 17. Rac1 {[%emt 0:04:36]} a5 {[%emt 0:01:54]} 18. e4 {[%emt 0:16:21]} dxe4 {[%emt 0:08:33]} 19. Nxe4 {[%emt 0:00:07]} f5 {[%emt 0:00:12]} 20. Nd6 {[%emt 0:05:08]} Rcd8 {[%emt 0:00:28]} 21. Nc4 {[%emt 0:03:11]} (21. Nb5 $1 $15) 21... e4 $17 {[%emt 0:02:03]} 22. Nfd2 {[%emt 0:00:58]} Bg5 {[%emt 0:08:28]} 23. Rb1 {[%emt 0:02:06]} axb4 {[%emt 0:12:18]} 24. axb4 {[%emt 0:00:02]} b5 {[%emt 0:01:57]} 25. Ne3 {[%emt 0:03:05]} f4 $36 {[%emt 0:06:21][%cal Bf5f4,Bf4f3][%mdl 2080] White is under strong pressure.} 26. Nef1 {[%emt 0:00:19] [#]} (26. Nxe4 $17 fxe3 27. Bxb5) 26... f3 $1 $19 {[%emt 0:00:04]} 27. Bxb5 {[%emt 0:03:54]} Na7 {[%emt 0:01:07] Strongly threatening ...Bxd2.} 28. Ba6 {[%emt 0:02:31]} Bxd2 {[%emt 0:01:18]} 29. Nxd2 {[%emt 0:02:19]} Rxg2+ {[%emt 0:00:32]} 30. Kh1 {[%emt 0:02:05]} f5 {[%emt 0:01:11]} 31. Bc4 $2 {[%emt 0:05:43]} (31. Nxf3 Rxd1+ 32. Rxd1 exf3 33. Rd6) 31... Bxc4 {[%emt 0:02:39]} 32. Nxc4 {[%emt 0:00:02]} Rxd1+ {[%emt 0:00:13]} 33. Rxd1 {[%emt 0:00:01]} Rxf2 {[%emt 0:00:15][%mdl 4096] Endgame KRN-KRN} 34. Kg1 {[%emt 0:01:22]} Rg2+ {[%emt 0:00:40]} 35. Kf1 {[%emt 0:00:01]} Rc2 {[%emt 0:05:13]} ({Don't blunder} 35... Rxh2 $2 36. Rd5 f4 37. Re5 $19) 36. Ne3 {[%emt 0:01:02]} Rxh2 {[%emt 0:00:04] [#] And now ...f4 would win.} 37. Rd8+ {[%emt 0:00:24]} Kc7 {[%emt 0:00:29] Hoping for ...f4.} 38. Rf8 {[%emt 0:00:01]} Re2 $2 {[%emt 0:07:07]} ({Black should play} 38... Nb5 $19 39. Rxf5 Nd6) 39. Nxf5 $11 {[%emt 0:01:19] The position is equal.} Nb5 {[%emt 0:00:10]} 40. Ng3 {[%emt 0:00:19]} Re3 {[%emt 0:00:40]} 41. Kf2 {[%emt 0:00:12]} Rxc3 {[%emt 0:00:06]} 42. Nxe4 {[%emt 0:00:05]} Rc4 {[%emt 0:00:37]} 43. Kxf3 {[%emt 0:00:32]} Rxb4 {[%emt 0:00:13]} 44. Rf7+ {[%emt 0:00:35]} Kc6 {[%emt 0:00:06] And White is the lucky defender.  Weighted Error Value: White=0.27 (precise) /Black=0.20 (precise)} 1/2-1/2

[Event "1st Semana Santa Torrevieja 2022"]
[Site "Torrevieja Alicante"]
[Date "2022.04.17"]
[Round "9.10"]
[White "Camacho Collados, Marcos"]
[Black "Vereggen, Lars"]
[Result "1-0"]
[ECO "A06"]
[WhiteElo "2462"]
[BlackElo "2326"]
[Annotator "TA"]
[PlyCount "97"]
[EventDate "2022.04.12"]
[EventType "swiss"]
[EventCountry "ESP"]
[SourceTitle "playchess.com"]
[Source "ChessBase"]
[SourceQuality "1"]
[TimeControl "5400+30"]

{[%evp 9,97,10,21,5,-8,-21,-6,-9,22,2,8,0,0,0,0,-22,-17,-46,0,0,0,0,0,-16,-8,-13,-13,-2,-7,-17,0,0,3,-30,-4,-12,-14,-9,0,0,0,0,0,-19,27,11,28,26,32,1,27,28,48,58,50,49,68,58,56,65,91,95,145,149,147,96,172,43,67,16,10,19,38,38,44,0,6,0,0,0,0,-26,0,-31,0,0,0,0,218,218]} 1. Nf3 {[%emt 0:00:30]} d5 {[%emt 0:03:41]} 2. b3 {[%emt 0:00:00]} c5 {[%emt 0:00:38]} 3. e3 {[%emt 0:00:21]} a6 {[%emt 0:01:34]} 4. Bb2 {[%emt 0:00:40]} Nc6 {[%emt 0:00:17]} 5. d4 {[%emt 0:01:44]} Nf6 {[%emt 0:00:09]} 6. a3 {[%emt 0:00:39] A06: Réti Opening: 1 Nf3 d5.} (6. dxc5 $5 {[%cal Ra2a3]} e6 7. Be2 $11) 6... cxd4 {[%emt 0:00:28]} 7. exd4 {[%emt 0:00:13]} (7. Nxd4 {seems wilder.} Bg4 8. Nxc6 bxc6 9. Qd4) 7... Bg4 {[%emt 0:00:49]} 8. Nbd2 {[%emt 0:03:21] [#] The position is equal.} Bxf3 $146 {[%emt 0:04:26]} ({Predecessor:} 8... e6 9. Be2 Rc8 10. Rc1 Be7 11. O-O O-O 12. h3 Bh5 13. Ne5 Bxe2 14. Qxe2 b5 {0-1 (42) Mukic,J (2379)-Bistric,F (2486) Kastav 2002}) 9. Qxf3 {[%emt 0:03:25]} g6 {[%emt 0:00:07]} 10. Bd3 {[%emt 0:04:40]} Bg7 {[%emt 0:00:10]} 11. O-O {[%emt 0:02:09]} O-O {[%emt 0:00:24]} 12. Rfe1 {[%emt 0:08:36]} Qb6 {[%emt 0:11:51]} 13. Qf4 {[%emt 0:09:18]} e6 {[%emt 0:05:38]} (13... Nh5 $1 $15 14. Qe3 e5) 14. Nf3 $11 {[%emt 0:01:52]} Rac8 {[%emt 0:00:18]} 15. Re2 {[%emt 0:05:06]} Nh5 {[%emt 0:03:11]} 16. Qh4 {[%emt 0:00:35]} Qd8 {[%emt 0:00:13]} (16... f5 {with more complications.} 17. Rxe6 Bf6 18. Rxf6 Nxf6 19. Qh6 Nd8) 17. Qxd8 {[%emt 0:01:31]} Rfxd8 {[%emt 0:01:00]} 18. g3 {[%emt 0:00:22] Prevents Nf4.} Nf6 {[%emt 0:02:03]} 19. Kg2 {[%emt 0:01:48]} Nd7 {[%emt 0:01:06][%cal Od7c5]} 20. Rb1 {[%emt 0:00:12]} Na7 {[%emt 0:01:51]} 21. Ne5 {[%emt 0:07:44]} Nb5 {[%emt 0:06:16]} (21... Bxe5 $5 22. dxe5 Nc5 $11) 22. Ra1 {[%emt 0:04:10]} Nb8 {[%emt 0:04:32]} 23. a4 {[%emt 0:03:33]} Nd6 {[%emt 0:05:40]} 24. g4 {[%emt 0:00:37]} Nc6 {[%emt 0:02:43]} 25. Nxc6 {[%emt 0:00:59]} Rxc6 {[%emt 0:00:09]} 26. h4 {[%emt 0:00:20][%cal Bh2h4,Bh4h5][%mdl 32]} Nc8 {[%emt 0:03:34]} (26... Ne4 $142) 27. h5 {[%emt 0:08:47]} Ne7 {[%emt 0:00:48]} 28. f4 {[%emt 0:02:05]} Rc7 {[%emt 0:10:34]} 29. Rh1 {[%emt 0:01:49]} Nc6 {[%emt 0:01:41]} 30. c3 {[%emt 0:00:05]} Na5 {[%emt 0:02:05]} 31. hxg6 {[%emt 0:00:35]} hxg6 {[%emt 0:00:05]} 32. f5 {[%emt 0:06:40]} exf5 {[%emt 0:00:06]} 33. gxf5 {[%emt 0:00:04]} g5 {[%emt 0:00:07]} 34. b4 {[%emt 0:01:58]} Nc6 {[%emt 0:04:05]} 35. Kf3 {[%emt 0:02:14] &Bianco is more active.} Re7 {[%emt 0:08:33]} (35... Bf6 $142) 36. Rxe7 $16 {[%emt 0:00:51]} Nxe7 {[%emt 0:00:05]} 37. Kg4 $1 {[%emt 0:00:19]} f6 {[%emt 0:01:26] [#]} (37... Bf6 $16 {was necessary.}) 38. Bc2 {[%emt 0:01:05]} ({White should try} 38. c4 $1 $18) 38... Kf7 {[%emt 0:00:26]} 39. Bb3 {[%emt 0:00:46]} ({Better is} 39. a5 $14) 39... Ng8 $11 {[%emt 0:00:31]} 40. Kf3 {[%emt 0:02:55]} Nh6 {[%emt 0:00:14]} 41. Bc2 {[%emt 0:00:27]} Bf8 {[%emt 0:00:32]} 42. Bd3 {[%emt 0:00:17]} Kg7 {[%emt 0:02:59]} 43. Re1 {[%emt 0:00:28]} Bd6 {[%emt 0:00:10]} 44. Kg2 {[%emt 0:02:47]} Nf7 {[%emt 0:00:40]} 45. Bc1 {[%emt 0:02:24]} Rh8 {[%emt 0:03:04]} (45... Rc8 $5 {[%cal Rc8c3]} 46. Bd2 Bf4 47. Bxf4 gxf4 $11) 46. Rh1 {[%emt 0:00:11]} Re8 {[%emt 0:02:36]} (46... Rc8 $5 {[%cal Rc8c3]} 47. Bb2 Bf4 $11) 47. Kf3 {[%emt 0:01:41]} Re7 {[%emt 0:04:07]} 48. a5 {[%emt 0:00:22]} Nh6 $2 {[%emt 0:00:36] [#]} (48... Rc7 $11 49. Bb2 Bf4) 49. Bxg5 $1 {[%emt 0:01:05][%mdl 512] Weighted Error Value: White=0.14 (very precise) /Black=0.22 (precise)} 1-0

[Event "1st Semana Santa Torrevieja 2022"]
[Site "Torrevieja Alicante"]
[Date "2022.04.17"]
[Round "9.11"]
[White "Aagaard, Jacob"]
[Black "Macias Pino, Diego"]
[Result "1/2-1/2"]
[ECO "C88"]
[WhiteElo "2465"]
[BlackElo "2317"]
[Annotator "TA"]
[PlyCount "118"]
[EventDate "2022.04.12"]
[EventType "swiss"]
[EventCountry "ESP"]
[SourceTitle "playchess.com"]
[Source "ChessBase"]
[SourceQuality "1"]
[TimeControl "5400+30"]

{[%evp 19,118,10,18,9,10,0,4,7,17,-5,-7,-3,0,-13,-2,-5,0,0,0,-3,0,0,0,-37,-29,-27,-36,-28,-35,-24,-19,-30,0,0,0,-23,0,-33,-43,-31,-39,-79,-47,-35,-48,-45,-30,-66,-60,-68,-39,-32,-32,-20,-20,-95,-113,-169,-159,-218,-247,-216,-137,-164,-87,-87,-87,-87,-67,-73,-41,-46,-38,-70,-60,-131,-62,-60,-13,-18,0,0,0,0,0,0,0,0,0,0,0,0,0,0,0,0,0,0,0,0,0]} 1. e4 {[%emt 0:00:30]} e5 {[%emt 0:00:30]} 2. Nf3 {[%emt 0:00:00]} Nc6 {[%emt 0:00:00]} 3. Bb5 {[%emt 0:00:30]} a6 {[%emt 0:00:00]} 4. Ba4 {[%emt 0:00:16]} Nf6 {[%emt 0:00:07]} 5. O-O {[%emt 0:00:14]} Be7 {[%emt 0:00:05]} 6. Re1 {[%emt 0:00:17]} b5 {[%emt 0:00:05]} 7. Bb3 {[%emt 0:00:11]} O-O {[%emt 0:00:05]} 8. d3 {[%emt 0:00:39]} d6 {[%emt 0:00:46]} 9. Bd2 {[%emt 0:00:43]} Bb7 {[%emt 0:03:25]} 10. a4 {[%emt 0:01:36]} b4 {[%emt 0:03:09]} 11. a5 {[%emt 0:05:23] C88: Closed Ruy Lopez: Anti-Marshall Systems.} d5 {[%emt 0:08:25] has lost popularity (11...Rb8).} 12. c3 {[%emt 0:09:52]} dxe4 {[%emt 0:09:53]} 13. dxe4 {[%emt 0:00:02] [#]} Bc5 $146 {[%emt 0:02:47]} ({Predecessor:} 13... bxc3 14. Nxc3 Rb8 15. Nd5 Nxd5 16. exd5 Nd4 17. Nxd4 exd4 18. Bf4 Ba8 19. Bc4 Bf6 {½-½ (19) Popov,A (2485)-Zimmermann,B (2495) ICCF corr 1994}) 14. Bg5 {[%emt 0:05:24]} Qxd1 {[%emt 0:09:37]} 15. Bxd1 {[%emt 0:00:38]} bxc3 {[%emt 0:07:45]} 16. bxc3 {[%emt 0:00:35]} h6 {[%emt 0:05:10]} 17. Bc1 {[%emt 0:09:05]} Ne7 {[%emt 0:09:15]} 18. Bc2 {[%emt 0:03:41]} Ng6 {[%emt 0:02:05]} 19. g3 {[%emt 0:02:28]} Rfd8 {[%emt 0:11:32]} 20. Nbd2 {[%emt 0:02:03]} Bc6 {[%emt 0:01:54]} 21. Ba4 {[%emt 0:06:08]} Bxa4 {[%emt 0:03:25]} 22. Rxa4 {[%emt 0:00:50]} Rab8 {[%emt 0:00:01]} 23. Kf1 {[%emt 0:16:46]} Ne8 {[%emt 0:01:41][%cal Bf6e8,Be8d6,Bd6b7,Bb7c5][%mdl 32]} 24. Ke2 {[%emt 0:05:19]} Nd6 {[%emt 0:01:00]} 25. Rf1 {[%emt 0:00:32]} Rb5 {[%emt 0:01:08]} 26. Ne1 {[%emt 0:01:10]} Nb7 {[%emt 0:01:17]} 27. Nc4 {[%emt 0:06:50]} Be7 {[%emt 0:00:04] [#] And now ...Nc5 would win.} 28. Be3 {[%emt 0:00:23]} Rb3 {[%emt 0:02:46][%cal Bb5b3,Bb3c3,Bc3c2][%mdl 32]} 29. Nd3 {[%emt 0:05:37]} Rxc3 {[%emt 0:02:20]} 30. Ndxe5 {[%emt 0:00:18]} Nxe5 {[%emt 0:00:11]} 31. Nxe5 {[%emt 0:00:02]} Nc5 {[%emt 0:01:37]} 32. Rd4 {[%emt 0:03:23]} Rc2+ {[%emt 0:01:23]} 33. Kf3 {[%emt 0:00:12]} Rxd4 {[%emt 0:00:13]} 34. Bxd4 {[%emt 0:00:07]} Nb3 {[%emt 0:00:05]} (34... Bd6 $5 {[%cal Rc5b3]} 35. Rd1 Nb3 $15) 35. Be3 {[%emt 0:00:44]} Nxa5 {[%emt 0:00:48]} 36. Ra1 {[%emt 0:03:45]} Nc6 {[%emt 0:01:02]} 37. Nd3 {[%emt 0:00:07] [#]} (37. Nxc6 $11 Rxc6 38. Ra4) 37... a5 $1 $17 {[%emt 0:00:44]} 38. Nf4 {[%emt 0:00:42]} (38. e5 $17 {keeps fighting.}) 38... Bd6 {[%emt 0:02:28]} 39. Nd5 {[%emt 0:00:24]} (39. h3 $17 {was worth a try.}) 39... Ne5+ $19 {[%emt 0:00:38]} 40. Kg2 {[%emt 0:00:16]} Nc4 {[%emt 0:01:59]} 41. Bf4 {[%emt 0:00:29]} c6 {[%emt 0:03:18]} (41... Bc5 $19 {...c6 is the strong threat.} 42. Bxc7 f5 43. exf5 Rxf2+ 44. Kh3 Rxf5) 42. Ne3 $17 {[%emt 0:02:16]} Nxe3+ {[%emt 0:00:42]} 43. Bxe3 {[%emt 0:00:02][%mdl 4096] Endgame KRB-KRB} Bc5 {[%emt 0:00:35] Hoping for ...Bxe3.} 44. Kf3 {[%emt 0:00:24]} Bxe3 {[%emt 0:00:18]} 45. Kxe3 {[%emt 0:00:01] KR-KR} Rc5 {[%emt 0:00:01]} 46. Rd1 {[%emt 0:00:53]} a4 {[%emt 0:01:42]} 47. Rd8+ {[%emt 0:00:48]} Kh7 {[%emt 0:00:00]} 48. Ra8 {[%emt 0:00:09] Prevents Ra5.} Rc4 {[%emt 0:00:02]} (48... Rc3+ $15 49. Kd2 Rc4) 49. h4 {[%emt 0:04:59] The position is equal.} f6 {[%emt 0:01:28]} 50. h5 {[%emt 0:00:21]} Rb4 {[%emt 0:00:28]} 51. f4 {[%emt 0:03:46]} g5 {[%emt 0:02:43]} 52. f5 {[%emt 0:03:14]} Kg7 {[%emt 0:01:23]} 53. g4 {[%emt 0:00:39]} c5 {[%emt 0:00:27]} 54. Kd3 {[%emt 0:00:52]} Rd4+ {[%emt 0:00:18]} 55. Ke3 {[%emt 0:00:02]} Rb4 {[%emt 0:01:06] White must now prevent ...Rb3+.} 56. Kd3 {[%emt 0:00:06]} Kf7 {[%emt 0:01:03]} 57. Ra5 {[%emt 0:00:14]} Rd4+ {[%emt 0:00:48]} 58. Ke3 {[%emt 0:00:03]} Rc4 {[%emt 0:01:02]} 59. Kd3 {[%emt 0:00:01]} Rd4+ {[%emt 0:00:19] Black had all chances to win.  Weighted Error Value: White=0.12 (very precise) /Black=0.09 (flawless)} 1/2-1/2